fUST/lending_fUST_20260111
["ID","MTS","AMOUNT","RATE_DAILY","PERIOD"]
[401273177,1768089048072,-4887.27,0.00036712,30]
[401273178,1768089048081,-4887.27,0.00036712,30]
[401273179,1768089048091,-4887.27,0.00036712,30]
[401273180,1768089048102,-4887.27,0.00036712,30]
[401273181,1768089048112,-548.84786937,0.00036712,30]
[401273182,1768089048121,-4887.27,0.00036712,30]
[401273183,1768089048132,-4887.27,0.00036712,30]
[401273184,1768089048142,-4887.27,0.00036712,30]
[401273185,1768089048153,-4887.27,0.00036712,30]
[401273186,1768089048163,-4887.27,0.00036712,30]
[401273187,1768089048174,-500.0,0.00036712,30]
[401273188,1768089048185,-4887.27,0.00036712,30]
[401273189,1768089048197,-4887.27,0.00036712,30]
[401273190,1768089048207,-4887.3,0.00036712,30]
[401273191,1768089048217,-502.73324908,0.00036712,30]
[401273192,1768089048227,-2216.62,0.00036712,30]
[401273193,1768089048238,-2216.62,0.00036712,30]
[401273194,1768089048250,-2216.62,0.00036712,30]
[401273195,1768089048260,-2216.62,0.00036712,30]
[401273196,1768089048271,-2216.62,0.00036712,30]
[401273197,1768089048281,-2216.62,0.00036712,30]
[401273198,1768089048291,-2216.62,0.00036712,30]
[401273199,1768089048300,-2216.62,0.00036712,30]
[401273200,1768089048310,-2216.62,0.00036712,30]
[401273201,1768089048320,-2216.62,0.00036712,30]
[401273202,1768089048330,-2216.62,0.00036712,30]
[401273203,1768089048339,-2216.62,0.00036712,30]
[401273204,1768089048348,-2216.62,0.00036712,30]
[401273205,1768089048358,-2216.62,0.00036712,30]
[401273206,1768089048368,-2216.62,0.00036712,30]
[401273208,1768089048377,-2216.62,0.00036712,30]
[401273209,1768089048388,-2216.62,0.00036712,30]
[401273210,1768089048399,-2216.62,0.00036712,30]
[401273211,1768089048409,-2216.62,0.00036712,30]
[401273212,1768089048420,-424.5297913,0.00036712,30]
[401273213,1768089048431,-2216.62,0.00036712,30]
[401273214,1768089048440,-2216.62,0.00036712,30]
[401273215,1768089048451,-2216.62,0.00036712,30]
[401273216,1768089048460,-2216.62,0.00036712,30]
[401273217,1768089048470,-2216.79,0.00036712,30]
[401273218,1768089048480,-500.0,0.00036712,30]
[401273219,1768089048489,-151.0,0.00036712,31]
[401273220,1768089048498,-151.0,0.00036712,31]
[401273221,1768089048508,-241.15003758,0.00036712,120]
[401273222,1768089048517,-155.463633,0.00036712,31]
[401273223,1768089048527,-519.73496402,0.00036712,30]
[401273224,1768089048536,-507.79933759,0.00036712,30]
[401273225,1768089048546,-2224.36,0.00036712,30]
[401273226,1768089048555,-2224.36,0.00036712,30]
[401273227,1768089048564,-2224.36,0.00036712,30]
[401273228,1768089048574,-2224.36,0.00036712,30]
[401273229,1768089048586,-2224.36,0.00036712,30]
[401273230,1768089048595,-2224.36,0.00036712,30]
[401273231,1768089048604,-2224.36,0.00036712,30]
[401273232,1768089048614,-2224.36,0.00036712,30]
[401273233,1768089048625,-2224.36,0.00036712,30]
[401273234,1768089048634,-2224.36,0.00036712,30]
[401273235,1768089048643,-2224.36,0.00036712,30]
[401273236,1768089048653,-2224.36,0.00036712,30]
[401273237,1768089048663,-2224.36,0.00036712,30]
[401273238,1768089048677,-2224.36,0.00036712,30]
[401273239,1768089048687,-2224.36,0.00036712,30]
[401273240,1768089048696,-530.64516971,0.00036712,30]
[401273241,1768089048705,-2224.36,0.00036712,30]
[401273242,1768089048715,-461.356461,0.00036712,31]
[401273243,1768089048725,-2224.36,0.00036712,30]
[401273244,1768089048734,-461.356461,0.00036712,31]
[401273245,1768089048744,-2224.36,0.00036712,30]
[401273246,1768089048754,-2224.36,0.00036712,30]
[401273247,1768089048763,-2224.36,0.00036712,30]
[401273248,1768089048772,-2224.36,0.00036712,30]
[401273249,1768089048782,-2224.36,0.00036712,30]
[401273250,1768089048791,-2224.36,0.00036712,30]
[401273251,1768089048800,-461.356461,0.00036712,31]
[401273252,1768089048810,-2224.53340001,0.00036712,30]
[401273253,1768089048820,-461.356461,0.00036712,31]
[401273254,1768089048830,-503.75250608,0.00036712,30]
[401273255,1768089048839,-292.0,0.00036712,30]
[401273256,1768089048849,-501.63141378,0.00036712,30]
[401273257,1768089048859,-461.356461,0.00036712,31]
[401273258,1768089048869,-461.356461,0.00036712,31]
[401273259,1768089048878,-461.356461,0.00036712,31]
[401273260,1768089048888,-461.356461,0.00036712,31]
[401273261,1768089048898,-512.71326822,0.00036712,30]
[401273262,1768089048908,-513.85673291,0.00036712,30]
[401273263,1768089048918,-546.28295531,0.00036712,30]
[401273264,1768089048927,-502.02662521,0.00036712,30]
[401273265,1768089048936,-507.12689469,0.00036712,30]
[401273266,1768089048946,-5048.48,0.00036712,30]
[401273267,1768089048955,-5048.48,0.00036712,30]
[401273268,1768089048964,-5048.48,0.00036712,30]
[401273269,1768089048974,-5048.48,0.00036712,30]
[401273270,1768089048983,-5048.48,0.00036712,30]
[401273271,1768089048992,-516.27122304,0.00036712,30]
[401273272,1768089049001,-5048.48,0.00036712,30]
[401273273,1768089049011,-26278.29,0.00036712,30]
[401273274,1768089049021,-5048.48,0.00036712,30]
[401273275,1768089049031,-26278.29,0.00036712,30]
[401273276,1768089049041,-5048.48,0.00036712,30]
[401273277,1768089049051,-26278.29,0.00036712,30]
[401273278,1768089049061,-5048.48,0.00036712,30]
[401273279,1768089049071,-26278.29,0.00036712,30]
[401273280,1768089049081,-5048.48,0.00036712,30]
[401273281,1768089049092,-26278.29,0.00036712,30]
[401273282,1768089049102,-5048.48,0.00036712,30]
[401273283,1768089049112,-26278.29,0.00036712,30]
[401273284,1768089049123,-5048.48,0.00036712,30]
[401273285,1768089049132,-4092.90849616,0.00036712,30]
[401273286,1768089049248,-22185.38150384,0.00036712,30]
[401273287,1768089049258,-519.57890422,0.00036712,30]
[401273288,1768089049267,-5048.48,0.00036712,30]
[401273289,1768089049277,-26278.29,0.00036712,30]
[401273290,1768089049287,-5048.48,0.00036712,30]
[401273291,1768089049296,-26278.29,0.00036712,30]
[401273292,1768089049306,-5048.48,0.00036712,30]
[401273293,1768089049316,-26278.29,0.00036712,30]
[401273294,1768089049325,-5048.48,0.00036712,30]
[401273295,1768089049334,-26278.29,0.00036712,30]
[401273296,1768089049344,-5048.48,0.00036712,30]
[401273297,1768089049353,-26278.29,0.00036712,30]
[401273298,1768089049362,-5048.48,0.00036712,30]
[401273299,1768089049371,-26278.29,0.00036712,30]
[401273300,1768089049381,-5048.48,0.00036712,30]
[401273301,1768089049392,-500.0,0.00036712,30]
[401273302,1768089049404,-5048.48,0.00036712,30]
[401273303,1768089049505,-26278.29,0.00036712,30]
[401273304,1768089049515,-264.02782837,0.00036712,30]
[401273305,1768089049524,-5048.48,0.00036712,30]
[401273306,1768089049534,-26278.29,0.00036712,30]
[401273307,1768089049543,-5048.48,0.00036712,30]
[401273308,1768089049552,-26278.29,0.00036712,30]
[401273309,1768089049562,-5048.48,0.00036712,30]
[401273310,1768089049571,-26278.29,0.00036712,30]
[401273311,1768089049581,-5048.65,0.00036712,30]
[401273312,1768089049593,-26278.29,0.00036712,30]
[401273313,1768089049602,-26278.29,0.00036712,30]
[401273314,1768089049612,-26278.29,0.00036712,30]
[401273315,1768089049622,-500.0,0.00036712,30]
[401273316,1768089049631,-26278.29,0.00036712,30]
[401273317,1768089049641,-500.0,0.00036712,30]
[401273318,1768089049651,-26278.29,0.00036712,30]
[401273319,1768089049662,-500.0,0.00036712,30]
[401273320,1768089049671,-26278.29,0.00036712,30]
[401273321,1768089049681,-505.77209003,0.00036712,30]
[401273322,1768089049691,-26278.45452659,0.00036712,30]
[401273323,1768089049701,-500.0,0.00036712,30]
[401273324,1768089049712,-514.99030424,0.00036712,30]
[401273325,1768089049722,-190.56820041,0.00036712,30]
[401273326,1768089049732,-245.445707,0.00036712,31]
[401273327,1768089049742,-245.445707,0.00036712,31]
[401273328,1768089049751,-245.445707,0.00036712,31]
[401273329,1768089049761,-245.445707,0.00036712,31]
[401273330,1768089049771,-245.445707,0.00036712,31]
[401273331,1768089049780,-245.445707,0.00036712,31]
[401273332,1768089049791,-245.445707,0.00036712,31]
[401273333,1768089049802,-245.445707,0.00036712,31]
[401273334,1768089049813,-151.895159,0.00036712,31]
[401273335,1768089049823,-151.895159,0.00036712,31]
[401273336,1768089049833,-151.895159,0.00036712,31]
[401273337,1768089049842,-151.895159,0.00036712,31]
[401273338,1768089049853,-194.07996615,0.00036712,30]
[401273339,1768089049862,-154.250355,0.00036712,31]
[401273340,1768089049871,-517.57408613,0.00036712,30]
[401273341,1768089049881,-510.26854716,0.00036712,30]
[401273342,1768089049891,-502.13581752,0.00036712,30]
[401273343,1768089049900,-503.58612392,0.00036712,30]
[401273344,1768089049910,-508.72813219,0.00036712,30]
[401273345,1768089049920,-962.73,0.00036712,30]
[401273346,1768089049933,-515.32820392,0.00036712,30]
[401273347,1768089049943,-962.73,0.00036712,30]
[401273348,1768089049953,-962.73,0.00036712,30]
[401273349,1768089049962,-962.73,0.00036712,30]
[401273350,1768089049972,-962.73,0.00036712,30]
[401273351,1768089049981,-962.73,0.00036712,30]
[401273352,1768089049990,-962.73,0.00036712,30]
[401273353,1768089049999,-962.73,0.00036712,30]
[401273354,1768089050008,-962.73,0.00036712,30]
[401273355,1768089050018,-962.73,0.00036712,30]
[401273356,1768089050027,-962.73,0.00036712,30]
[401273357,1768089050036,-962.73,0.00036712,30]
[401273358,1768089050046,-962.73,0.00036712,30]
[401273359,1768089050057,-962.73,0.00036712,30]
[401273360,1768089050067,-962.73,0.00036712,30]
[401273361,1768089050076,-962.73,0.00036712,30]
[401273362,1768089050085,-962.73,0.00036712,30]
[401273363,1768089050095,-962.73,0.00036712,30]
[401273364,1768089050104,-962.73,0.00036712,30]
[401273365,1768089050113,-962.73,0.00036712,30]
[401273366,1768089050123,-962.73,0.00036712,30]
[401273367,1768089050132,-153.24451864,0.00036712,30]
[401273368,1768089050141,-962.73,0.00036712,30]
[401273369,1768089050150,-962.73,0.00036712,30]
[401273370,1768089050159,-962.82753936,0.00036712,30]
[401273371,1768089050168,-504.58187361,0.00036712,30]
[401273372,1768089050177,-537.6308808,0.00036712,30]
[401273373,1768089050187,-500.0,0.00036712,30]
[401273374,1768089050197,-500.0,0.00036712,30]
[401273375,1768089050208,-607.40648212,0.00036712,30]
[401273376,1768089050219,-503.30308502,0.00036712,30]
[401273377,1768089050230,-2293.74,0.00036712,30]
[401273378,1768089050240,-2293.74,0.00036712,30]
[401273379,1768089050252,-2293.74,0.00036712,30]
[401273380,1768089050262,-151.0,0.00036712,31]
[401273381,1768089050273,-2293.74,0.00036712,30]
[401273382,1768089050283,-2293.74,0.00036712,30]
[401273383,1768089050293,-2293.74,0.00036712,30]
[401273384,1768089050303,-2293.74,0.00036712,30]
[401273385,1768089050314,-2293.74,0.00036712,30]
[401273386,1768089050324,-2293.74,0.00036712,30]
[401273387,1768089050338,-2293.74,0.00036712,30]
[401273388,1768089050349,-2293.74,0.00036712,30]
[401273389,1768089050359,-2293.74,0.00036712,30]
[401273390,1768089050368,-2293.74,0.00036712,30]
[401273391,1768089050378,-2293.74,0.00036712,30]
[401273392,1768089050387,-2293.74,0.00036712,30]
[401273393,1768089050397,-2293.74,0.00036712,30]
[401273394,1768089050407,-151.0,0.00036712,31]
[401273395,1768089050417,-2293.74,0.00036712,30]
[401273396,1768089050427,-2293.74,0.00036712,30]
[401273397,1768089050437,-500.0,0.00036712,30]
[401273398,1768089050447,-151.0,0.00036712,31]
[401273399,1768089050458,-2293.74,0.00036712,30]
[401273400,1768089050468,-508.39005732,0.00036712,30]
[401273401,1768089050478,-2293.74,0.00036712,30]
[401273402,1768089050488,-2293.74,0.00036712,30]
[401273403,1768089050497,-281.2129169,0.00036712,30]
[401273404,1768089050507,-2293.74,0.00036712,30]
[401273405,1768089050517,-2293.74,0.00036712,30]
[401273406,1768089050527,-2293.83,0.00036712,30]
[401273407,1768089050537,-564.76418067,0.00036712,30]
[401273408,1768089050547,-500.0,0.00036712,30]
[401273409,1768089050558,-367.80015612,0.00036712,30]
[401273410,1768089050567,-505.57663018,0.00036712,30]
[401273411,1768089050576,-500.0,0.00036712,2]
[401273412,1768089050589,-500.0,0.00036712,2]
[401273413,1768089050598,-500.0,0.00036712,2]
[401273414,1768089050608,-500.0,0.00036712,2]
[401273415,1768089050617,-500.0,0.00036712,2]
[401273416,1768089050627,-500.0,0.00036712,2]
[401273417,1768089050636,-500.0,0.00036712,2]
[401273418,1768089050645,-500.0,0.00036712,2]
[401273419,1768089050656,-500.0,0.00036712,2]
[401273420,1768089050666,-492.31732817,0.00036712,30]
[401273421,1768089050676,-500.0,0.00036712,2]
[401273422,1768089050685,-500.0,0.00036712,2]
[401273423,1768089050694,-500.0,0.00036712,30]
[401273424,1768089050703,-500.0,0.00036712,2]
[401273425,1768089050713,-198.99431886,0.00036712,30]
[401273426,1768089050723,-500.0,0.00036712,2]
[401273427,1768089050732,-500.0,0.00036712,2]
[401273428,1768089050743,-500.0,0.00036712,2]
[401273429,1768089050753,-500.0,0.00036712,2]
[401273430,1768089050762,-502.32745149,0.00036712,2]
[401273431,1768089050772,-151.0,0.00036712,31]
[401273432,1768089050783,-545.21658131,0.00036712,30]
[401273433,1768089050792,-255.59781184,0.00036712,30]
[401273434,1768089050804,-243.59740155,0.00036712,30]
[401273435,1768089050813,-151.0,0.00036712,31]
[401273436,1768089050824,-501.82493235,0.00036712,30]
[401273437,1768089050833,-462.60317284,0.00036712,30]
[401273438,1768089050842,-558.93259769,0.00036712,30]
[401273439,1768089050852,-519.14998941,0.00036712,30]
[401273440,1768089050861,-253.53454304,0.00036712,30]
[401273441,1768089050871,-500.0,0.00036712,30]
[401273442,1768089050881,-160.0,0.0003674,11]
[401273443,1768089050892,-160.0,0.0003674,11]
[401273444,1768089050902,-728.0,0.0003674,11]
[401273445,1768089050913,-728.0,0.00036745,11]
[401273446,1768089050925,-728.0,0.00036745,11]
[401273447,1768089050935,-728.0,0.00036746,11]
[401273448,1768089050944,-95986.0676826,0.00036756,16]
[401273449,1768089050955,-349.0,0.00036858,2]
[401273450,1768089050964,-151.0,0.00036858,28]
[401273451,1768089050974,-241.887947,0.00036858,28]
[401273452,1768089050982,-315.18853,0.00036858,31]
[401273453,1768089050991,-315.18853,0.00036858,31]
[401273454,1768089051001,-315.18853,0.00036858,31]
[401273455,1768089051010,-315.18853,0.00036858,31]
[401273456,1768089051024,-1112.0,0.00036863,2]
[401273457,1768089051034,-1112.0,0.00036864,3]
[401273458,1768089051043,-2000.0,0.000369,120]
[401273459,1768089051053,-2496.11668607,0.00036908,2]
[401273460,1768089051062,-290.04952508,0.00036956,2]
[401273461,1768089051071,-377.1655679,0.00036959,30]
[401273462,1768089051079,-376.4294039,0.00036959,30]
[401273463,1768089051089,-1406.31895682,0.00036974,5]
[401273464,1768089051097,-982.01484821,0.00036975,2]
[401273465,1768089051106,-3928.05939282,0.00036975,2]
[401273466,1768089051116,-498.07129721,0.00036975,2]
[401273467,1768089051125,-1992.28518883,0.00036975,2]
[401273468,1768089051134,-4482.64167486,0.00036975,2]
[401273469,1768089051144,-7969.14075531,0.00036975,2]
[401273470,1768089051153,-151.0,0.00036975,31]
[401273471,1768089051162,-151.0,0.00036975,31]
[401273472,1768089051172,-151.0,0.00036979,31]
[401273473,1768089051182,-500.0,0.00037,120]
[401273474,1768089051191,-1041.66666667,0.00037,3]
[401273475,1768089051200,-427.0,0.00037014,120]
[401273476,1768089051210,-21018.6948042,0.00037016,2]
[401273477,1768089051219,-1272.5516374,0.00037016,2]
[401273478,1768089051229,-2108.7312765,0.00037016,2]
[401273479,1768089051238,-5000.0,0.00037018,28]
[401273480,1768089051248,-5000.0,0.00037018,30]
[401273481,1768089051257,-5000.0,0.00037018,20]
[401273482,1768089051266,-800.0,0.00037019,7]
[401273483,1768089051277,-151.0,0.00037019,14]
[401273484,1768089051287,-152.0,0.00037021,14]
[401273485,1768089051296,-152.0,0.00037021,14]
[401273486,1768089051306,-152.0,0.00037021,14]
[401273487,1768089051315,-152.0,0.00037021,14]
[401273488,1768089051324,-152.0,0.00037021,14]
[401273489,1768089051333,-152.0,0.00037021,14]
[401273490,1768089051343,-152.0,0.00037021,14]
[401273491,1768089051352,-214.57010533,0.00037021,14]
[401273492,1768089051361,-152.0,0.00037021,14]
[401273493,1768089051371,-152.0,0.00037021,14]
[401273494,1768089051380,-152.0,0.00037021,14]
[401273495,1768089051389,-152.0,0.00037021,14]
[401273496,1768089051399,-202.68303487,0.00037021,14]
[401273497,1768089051408,-621.0,0.00037036,120]
[401273498,1768089051418,-1552060.17788166,0.00037056,20]
[401273499,1768089051433,-590.20098587,0.00037056,20]
[401273500,1768089051444,-99450.91142333,0.00037056,20]
[401273501,1768089051454,-17211.74169287,0.00037056,20]
[401273502,1768089051467,-485.49245402,0.00037056,20]
[401273503,1768089051479,-80139.93218242,0.00037056,20]
[401273504,1768089051499,-377.1655679,0.00036,30]
[401273505,1768089051510,-200.42370139,0.00037056,20]
[401273506,1768089051529,-664.0,0.0003629,30]
[401273507,1768089051540,-590.5,0.0003629,30]
[401273508,1768089051549,-3219.60388076,0.00037056,20]
[401273509,1768089051560,-27672.72439744,0.00037056,20]
[401273584,1768089234391,200.0,0.00030137,120]
[401273587,1768089246499,200.0,0.00030137,120]
[401273588,1768089267508,200.0,0.00030137,120]
[401273589,1768089280245,275.49,0.00030137,120]
[401273928,1768090232407,-999.0,0.00010959,2]
[401273930,1768090232417,-163.79811511,0.00010959,2]
[401273931,1768090232427,-213.90727308,0.00010959,2]
[401273932,1768090232443,-360.09272692,0.00010959,2]
[401273933,1768090232452,-166.893,0.00011206,2]
[401273934,1768090232462,-300.0,0.00011333,2]
[401273935,1768090232471,-300.0,0.00011333,2]
[401273936,1768090232480,-300.0,0.00011333,2]
[401273937,1768090232489,-53.01429808,0.00011334,2]
[401273939,1768090238820,-999946.98570192,0.00011334,2]
[401273940,1768090238830,-50000.0,0.00011434,2]
[401273941,1768090238840,-500.0,0.00011434,2]
[401273942,1768090238851,-500.0,0.00011434,2]
[401273943,1768090238861,-500.0,0.00011434,2]
[401273944,1768090238872,-533.73431808,0.00011434,2]
[401273945,1768090238882,-328.49975936,0.00011434,2]
[401273946,1768090238892,-300.0,0.00011661,2]
[401273947,1768090238902,-300.0,0.00011661,2]
[401273948,1768090238912,-300.0,0.00011661,2]
[401273949,1768090238922,-300.0,0.00011661,2]
[401273950,1768090238931,-300.0,0.00011661,2]
[401273951,1768090238941,-300.0,0.00011661,2]
[401273952,1768090238951,-300.0,0.00011661,2]
[401273953,1768090238961,-300.0,0.00011661,2]
[401273954,1768090238971,-300.0,0.00011661,2]
[401273955,1768090238981,-300.0,0.00011661,2]
[401273956,1768090238991,-300.0,0.00011661,2]
[401273957,1768090239001,-300.0,0.00011661,2]
[401273958,1768090239010,-300.0,0.00011661,2]
[401273959,1768090239019,-300.0,0.00011661,2]
[401273960,1768090239029,-300.0,0.00011661,2]
[401273961,1768090239038,-600.0,0.00011662,2]
[401273962,1768090239047,-500.0,0.00012329,2]
[401273963,1768090239057,-500.0,0.00012329,2]
[401273964,1768090239068,-500.0,0.00012329,2]
[401273965,1768090239089,-500.0,0.00012329,2]
[401273966,1768090239101,-500.0,0.00012329,2]
[401273967,1768090239111,-500.0,0.00012329,2]
[401273968,1768090239122,-500.0,0.00012329,2]
[401273969,1768090239132,-500.0,0.00012329,2]
[401273970,1768090239143,-500.0,0.00012329,2]
[401273971,1768090239152,-500.0,0.00012329,2]
[401273972,1768090239163,-500.0,0.00012329,2]
[401273973,1768090239174,-500.0,0.00012329,2]
[401273974,1768090239184,-500.0,0.00012329,2]
[401273975,1768090239194,-216.58493625,0.00012329,2]
[401274053,1768090246708,-283.41506375,0.00012329,2]
[401274055,1768090246718,-18.58493625,0.00012329,2]
[401274519,1768090448027,300.0,0.00010688,2]
[401274700,1768090957373,222.0,0.00030137,120]
[401274790,1768091371806,40.0,8.246e-05,2]
[401274791,1768091371830,115.0,8.246e-05,2]
[401274792,1768091373313,1003.84,0.00030137,120]
[401274880,1768091431660,-166.893,0.00011009,2]
[401274882,1768091431671,-575.0,0.00011009,2]
[401274884,1768091431680,-165.94880372,0.00011037,2]
[401274886,1768091431690,-300.0,0.00011133,2]
[401274888,1768091431699,-8436.46863377,0.00011134,2]
[401274891,1768091431710,-41679.11912985,0.00011134,2]
[401275452,1768091437803,-32727.72677183,0.00011134,2]
[401275521,1768091445748,-4333.993589,0.00011134,2]
[401275530,1768091520437,225.98155301,0.0003,120]
[401275655,1768092631783,-4193.859,0.00010911,10]
[401275657,1768092631793,-166.894,0.00010911,2]
[401275658,1768092631803,-184.64545634,0.00010911,2]
[401275659,1768092631813,-573.0,0.00010911,2]
[401275660,1768092631823,-50000.0,0.00011032,2]
[401275661,1768092631832,-320.46056269,0.00011032,2]
[401275662,1768092631843,-500.0,0.00011032,2]
[401275663,1768092631852,-500.0,0.00011032,2]
[401275664,1768092631862,-500.0,0.00011032,2]
[401275665,1768092631871,-500.0,0.00011032,2]
[401275666,1768092631880,-266.7159485,0.00011032,2]
[401275667,1768092631890,-500.0,0.00011032,2]
[401275668,1768092631899,-500.0,0.00011032,2]
[401275669,1768092631908,-500.0,0.00011032,2]
[401275670,1768092631918,-500.0,0.00011032,2]
[401275671,1768092631927,-500.0,0.00011032,2]
[401275673,1768092631936,-500.0,0.00011032,2]
[401275675,1768092631946,-500.0,0.00011032,2]
[401275677,1768092631956,-442.98430113,0.00011032,2]
[401275679,1768092631965,-500.0,0.00011032,2]
[401275681,1768092631975,-500.0,0.00011032,2]
[401275683,1768092631985,-500.0,0.00011032,2]
[401275685,1768092631994,-500.0,0.00011032,2]
[401275687,1768092632003,-500.0,0.00011032,2]
[401275689,1768092632012,-500.0,0.00011032,2]
[401275691,1768092632021,-500.0,0.00011032,2]
[401275694,1768092632034,-500.0,0.00011032,2]
[401275696,1768092632044,-500.0,0.00011032,2]
[401275698,1768092632054,-500.0,0.00011032,2]
[401275699,1768092632063,-500.0,0.00011032,2]
[401275700,1768092632072,-500.0,0.00011032,2]
[401275701,1768092632082,-500.0,0.00011032,2]
[401275702,1768092632092,-500.0,0.00011032,2]
[401275703,1768092632101,-500.0,0.00011032,2]
[401275704,1768092632111,-500.0,0.00011032,2]
[401275705,1768092632122,-500.0,0.00011032,2]
[401275706,1768092632132,-500.0,0.00011032,2]
[401275707,1768092632142,-500.0,0.00011032,2]
[401275708,1768092632152,-500.0,0.00011032,2]
[401275709,1768092632162,-500.0,0.00011032,2]
[401275710,1768092632172,-500.0,0.00011032,2]
[401275711,1768092632182,-500.0,0.00011032,2]
[401275712,1768092632191,-500.0,0.00011032,2]
[401275713,1768092632201,-628.63254898,0.00011032,2]
[401275714,1768092632210,-500.0,0.00011032,2]
[401275715,1768092632219,-500.0,0.00011032,2]
[401275716,1768092632228,-500.0,0.00011032,2]
[401275717,1768092632238,-500.0,0.00011032,2]
[401275718,1768092632248,-504.03255604,0.00011032,2]
[401275719,1768092632258,-500.0,0.00011032,2]
[401275720,1768092632267,-500.0,0.00011032,2]
[401275721,1768092632276,-500.0,0.00011032,2]
[401275722,1768092632286,-500.0,0.00011032,2]
[401275723,1768092632295,-500.0,0.00011032,2]
[401275724,1768092632305,-500.0,0.00011032,2]
[401275725,1768092632315,-500.0,0.00011032,2]
[401275726,1768092632326,-500.0,0.00011032,2]
[401275727,1768092632335,-500.0,0.00011032,2]
[401275728,1768092632344,-500.0,0.00011032,2]
[401275729,1768092632354,-500.0,0.00011032,2]
[401275730,1768092632363,-500.0,0.00011032,2]
[401275731,1768092632372,-498.58997527,0.00011032,2]
[401275732,1768092632381,-500.0,0.00011032,2]
[401275733,1768092632391,-500.0,0.00011032,2]
[401275734,1768092632402,-500.0,0.00011032,2]
[401275735,1768092632415,-500.0,0.00011032,2]
[401275736,1768092632425,-500.0,0.00011032,2]
[401275737,1768092632434,-500.0,0.00011032,2]
[401275738,1768092632443,-323.61398445,0.00011032,2]
[401275739,1768092632458,-176.38601555,0.00011032,2]
[401275740,1768092632467,-118.10914703,0.00011032,2]
[401275793,1768092646011,-381.89085297,0.00011032,2]
[401275795,1768092646021,-205.57731051,0.00011032,2]
[401275797,1768092646032,-294.42268949,0.00011032,2]
[401275800,1768092646042,-650.0,0.00011032,2]
[401275801,1768092646051,-500.0,0.00011032,2]
[401275803,1768092646060,-500.0,0.00011032,2]
[401275805,1768092646069,-500.0,0.00011032,2]
[401275807,1768092646079,-500.0,0.00011032,2]
[401275809,1768092646088,-8675.18423261,0.00011033,2]
[401275927,1768092668886,167.29052035,0.00023888,120]
[401275928,1768092670663,166.12324381,0.00024605,110]
[401275929,1768092670686,52.55539347,0.00024605,110]
[401275930,1768092673954,31.42552678,0.00024332,94]
[401275931,1768092673978,185.36863683,0.00024332,94]
[401275932,1768092673998,5.04032219,0.00024332,94]
[401275933,1768092674287,180.32831464,0.00024332,94]
[401275934,1768092674312,38.24389961,0.00024332,94]
[401275935,1768092674625,132.44460653,0.00024605,110]
[401275936,1768092674650,89.38987927,0.00024605,110]
[401275959,1768092939239,150.0,7.194e-05,2]
[401276229,1768093832095,-164.7616441,0.00010059,2]
[401276230,1768093832104,-561.0,0.00010059,2]
[401276231,1768093832115,-187.92846327,0.00010066,2]
[401276232,1768093832124,-300.0,0.00010073,2]
[401276233,1768093832134,-166.894,0.00010812,2]
[401276234,1768093832144,-151.0,0.00010925,2]
[401276235,1768093832153,-151.0,0.00010925,2]
[401276236,1768093832163,-151.0,0.00010925,2]
[401276237,1768093832173,-151.0,0.00010925,2]
[401276238,1768093832183,-151.0,0.00010925,2]
[401276239,1768093832193,-151.0,0.00010925,2]